[Event "*** SCC Grand Prix: Titled Tuesday Blitz"]
[Site "Chess.com"]
[Date "2020.06.02"]
[Round "7"]
[White "cassoulet"]
[Black "Shota_Azaladze"]
[Result "1-0"]
[WhiteElo "2617"]
[BlackElo "2812"]
[TimeControl "180+1"]
[EndTime "11:21:17 PDT"]
[Termination "cassoulet won by checkmate"]

1. e4 {[%clk 0:03:00.9]} 1... g6 {[%clk 0:03:00]} 2. Nc3 {[%clk 0:03:00.2]} 2...
Bg7 {[%clk 0:03:00.9]} 3. h4 {[%clk 0:03:00.7]} 3... c6 {[%clk 0:03:00.9]} 4. h5
{[%clk 0:03:00.6]} 4... d5 {[%clk 0:03:01.5]} 5. Nf3 {[%clk 0:02:55.3]} 5... d4
{[%clk 0:03:01.4]} 6. Ne2 {[%clk 0:02:54]} 6... c5 {[%clk 0:03:00.7]} 7. d3
{[%clk 0:02:52.4]} 7... Nc6 {[%clk 0:03:00.6]} 8. Nf4 {[%clk 0:02:52.6]} 8... e5
{[%clk 0:02:56.4]} 9. Nd5 {[%clk 0:02:51.1]} 9... Be6 {[%clk 0:02:56.5]} 10. c4
{[%clk 0:02:24.9]} 10... dxc3 {[%clk 0:02:55.7]} 11. Nxc3 {[%clk 0:02:23.4]}
11... Bg4 {[%clk 0:02:48.8]} 12. h6 {[%clk 0:02:20.4]} 12... Bf6 {[%clk
0:02:38.4]} 13. Be3 {[%clk 0:02:16.7]} 13... Be7 {[%clk 0:02:35.7]} 14. Qb3
{[%clk 0:02:07.7]} 14... Qd7 {[%clk 0:02:29.6]} 15. Nd5 {[%clk 0:01:56.7]} 15...
Be6 {[%clk 0:02:26.2]} 16. Rc1 {[%clk 0:01:47.5]} 16... b6 {[%clk 0:02:17.3]}
17. Qa4 {[%clk 0:01:06.4]} 17... Rc8 {[%clk 0:02:07.5]} 18. Nxe7 {[%clk
0:01:00.7]} 18... Ngxe7 {[%clk 0:02:06.3]} 19. Bg5 {[%clk 0:01:00.2]} 19... Ng8
{[%clk 0:01:54.3]} 20. Be2 {[%clk 0:00:55.8]} 20... f6 {[%clk 0:01:54.4]} 21.
Be3 {[%clk 0:00:56]} 21... Nge7 {[%clk 0:01:54.1]} 22. a3 {[%clk 0:00:52.5]}
22... O-O {[%clk 0:01:53]} 23. O-O {[%clk 0:00:51.6]} 23... Nd4 {[%clk
0:01:51.7]} 24. Qd1 {[%clk 0:00:46.8]} 24... Nxe2+ {[%clk 0:01:50.2]} 25. Qxe2
{[%clk 0:00:46.7]} 25... Bg4 {[%clk 0:01:50.7]} 26. b4 {[%clk 0:00:37.1]} 26...
cxb4 {[%clk 0:01:46.4]} 27. axb4 {[%clk 0:00:38]} 27... Rfd8 {[%clk 0:01:43.9]}
28. Rxc8 {[%clk 0:00:35.9]} 28... Rxc8 {[%clk 0:01:42.9]} 29. Rd1 {[%clk
0:00:35.5]} 29... g5 {[%clk 0:01:25.8]} 30. d4 {[%clk 0:00:31.8]} 30... exd4
{[%clk 0:01:25.7]} 31. Rxd4 {[%clk 0:00:31.6]} 31... Qe6 {[%clk 0:01:25.9]} 32.
Qd1 {[%clk 0:00:29.6]} 32... Kf7 {[%clk 0:01:22.8]} 33. Qa1 {[%clk 0:00:21.9]}
33... Bxf3 {[%clk 0:01:20.9]} 34. gxf3 {[%clk 0:00:22.8]} 34... Rc7 {[%clk
0:01:20.8]} 35. Kg2 {[%clk 0:00:20.4]} 35... Rd7 {[%clk 0:01:18.3]} 36. Rxd7
{[%clk 0:00:14.8]} 36... Qxd7 {[%clk 0:01:19.2]} 37. e5 {[%clk 0:00:15.6]} 37...
Qd5 {[%clk 0:00:59.5]} 38. exf6 {[%clk 0:00:13.8]} 38... Ng6 {[%clk 0:01:00]}
39. Qxa7+ {[%clk 0:00:12.7]} 39... Kxf6 {[%clk 0:01:00.4]} 40. Qxh7 {[%clk
0:00:13.6]} 40... Nh4+ {[%clk 0:00:58.5]} 41. Kh2 {[%clk 0:00:08.3]} 41... Qxf3
{[%clk 0:00:47.4]} 42. Qg7+ {[%clk 0:00:07.8]} 42... Ke6 {[%clk 0:00:47.5]} 43.
Qg8+ {[%clk 0:00:07.6]} 43... Kd7 {[%clk 0:00:46.1]} 44. Qg7+ {[%clk 0:00:04.9]}
44... Kc6 {[%clk 0:00:44.4]} 45. b5+ {[%clk 0:00:05.4]} 45... Kxb5 {[%clk
0:00:43.7]} 46. Qd7+ {[%clk 0:00:06.1]} 46... Kc4 {[%clk 0:00:41.1]} 47. Qa4+
{[%clk 0:00:05.5]} 47... Kc3 {[%clk 0:00:34.5]} 48. Qa3+ {[%clk 0:00:04.4]}
48... Kc2 {[%clk 0:00:34]} 49. Qa2+ {[%clk 0:00:04.8]} 49... Kd3 {[%clk
0:00:29.1]} 50. Qb3+ {[%clk 0:00:05]} 50... Ke4 {[%clk 0:00:26.8]} 51. Qe6+
{[%clk 0:00:05.2]} 51... Kd3 {[%clk 0:00:26.1]} 52. Qb3+ {[%clk 0:00:05.7]}
52... Ke4 {[%clk 0:00:24.6]} 53. Qc2+ {[%clk 0:00:04.4]} 53... Kd5 {[%clk
0:00:23.6]} 54. Qb3+ {[%clk 0:00:04.6]} 54... Kd6 {[%clk 0:00:18.1]} 55. Qxb6+
{[%clk 0:00:04.2]} 55... Ke7 {[%clk 0:00:16.8]} 56. Qc7+ {[%clk 0:00:04.2]}
56... Ke6 {[%clk 0:00:15.4]} 57. Qc8+ {[%clk 0:00:04.6]} 57... Kf7 {[%clk
0:00:15.4]} 58. Qd7+ {[%clk 0:00:04.8]} 58... Kg6 {[%clk 0:00:15.2]} 59. Qe8+
{[%clk 0:00:04.5]} 59... Kxh6 {[%clk 0:00:15.1]} 60. Qh8+ {[%clk 0:00:04.7]}
60... Kg6 {[%clk 0:00:15.5]} 61. Qg8+ {[%clk 0:00:05.2]} 61... Kh5 {[%clk
0:00:15.2]} 62. Qxg5# {[%clk 0:00:05.2]} 1-0

[Event "*** SCC Grand Prix: Titled Tuesday Blitz"]
[Site "Chess.com"]
[Date "2020.06.02"]
[Round "7"]
[White "Alexander_Zubov"]
[Black "rasmussvane"]
[Result "1-0"]
[WhiteElo "2980"]
[BlackElo "2896"]
[TimeControl "180+1"]
[EndTime "11:21:23 PDT"]
[Termination "Alexander_Zubov won by resignation"]

1. d4 {[%clk 0:03:00.9]} 1... d5 {[%clk 0:02:59.8]} 2. c4 {[%clk 0:02:56.9]}
2... e6 {[%clk 0:02:59.9]} 3. Nf3 {[%clk 0:02:54.9]} 3... a6 {[%clk 0:03:00.1]}
4. cxd5 {[%clk 0:02:53.8]} 4... exd5 {[%clk 0:03:01]} 5. Nc3 {[%clk 0:02:53.6]}
5... Nf6 {[%clk 0:03:01]} 6. Bf4 {[%clk 0:02:52.6]} 6... Bd6 {[%clk 0:03:00.7]}
7. Bg3 {[%clk 0:02:52.5]} 7... O-O {[%clk 0:03:01.2]} 8. e3 {[%clk 0:02:52.1]}
8... Re8 {[%clk 0:02:55.4]} 9. a3 {[%clk 0:02:46.6]} 9... c6 {[%clk 0:02:53.6]}
10. Qc2 {[%clk 0:02:44.3]} 10... Be6 {[%clk 0:02:21.6]} 11. Bd3 {[%clk
0:02:39.9]} 11... Qc7 {[%clk 0:02:17.7]} 12. Na4 {[%clk 0:02:30.7]} 12... Nbd7
{[%clk 0:02:16.8]} 13. b4 {[%clk 0:02:27.9]} 13... Bg4 {[%clk 0:02:14]} 14. O-O
{[%clk 0:02:20.8]} 14... Bh5 {[%clk 0:01:58.6]} 15. Nc5 {[%clk 0:02:00.9]} 15...
Bxg3 {[%clk 0:01:58.6]} 16. hxg3 {[%clk 0:02:00]} 16... Bg6 {[%clk 0:01:59.1]}
17. a4 {[%clk 0:01:53.3]} 17... Nb6 {[%clk 0:01:57.5]} 18. Ne5 {[%clk
0:01:45.9]} 18... Bxd3 {[%clk 0:01:54]} 19. Qxd3 {[%clk 0:01:45.2]} 19... Nfd7
{[%clk 0:01:36.1]} 20. Nexd7 {[%clk 0:01:38.8]} 20... Nxd7 {[%clk 0:01:37]} 21.
Rfc1 {[%clk 0:01:19.9]} 21... Nb6 {[%clk 0:01:35]} 22. b5 {[%clk 0:01:19.6]}
22... axb5 {[%clk 0:01:33.2]} 23. axb5 {[%clk 0:01:19.2]} 23... Nc4 {[%clk
0:01:33.7]} 24. bxc6 {[%clk 0:01:11.7]} 24... bxc6 {[%clk 0:01:34.6]} 25. e4
{[%clk 0:01:09.9]} 25... Qe7 {[%clk 0:01:13]} 26. Qe2 {[%clk 0:00:50.1]} 26...
h6 {[%clk 0:01:02.2]} 27. e5 {[%clk 0:00:44.8]} 27... Qg5 {[%clk 0:00:51.3]} 28.
Re1 {[%clk 0:00:43.4]} 28... Qd2 {[%clk 0:00:47]} 29. Qxd2 {[%clk 0:00:39.6]}
29... Nxd2 {[%clk 0:00:47.9]} 30. g4 {[%clk 0:00:34.6]} 30... Reb8 {[%clk
0:00:37.5]} 31. Red1 {[%clk 0:00:24.4]} 31... Rxa1 {[%clk 0:00:23.1]} 32. Rxa1
{[%clk 0:00:24]} 32... Rb1+ {[%clk 0:00:23.7]} 33. Rxb1 {[%clk 0:00:23]} 33...
Nxb1 {[%clk 0:00:24.6]} 34. f4 {[%clk 0:00:20.5]} 34... Nc3 {[%clk 0:00:24.6]}
35. Kf2 {[%clk 0:00:20.3]} 35... Kf8 {[%clk 0:00:17.9]} 36. f5 {[%clk
0:00:19.4]} 36... Ke7 {[%clk 0:00:18.3]} 37. Ke3 {[%clk 0:00:19.9]} 37... Nd1+
{[%clk 0:00:16.9]} 38. Kf3 {[%clk 0:00:19.3]} 38... Nc3 {[%clk 0:00:17.1]} 39.
Nd3 {[%clk 0:00:18.8]} 39... Nb5 {[%clk 0:00:17]} 40. Ke3 {[%clk 0:00:18.1]}
40... Na3 {[%clk 0:00:17.5]} 41. Nc5 {[%clk 0:00:16.9]} 41... Nc4+ {[%clk
0:00:17.8]} 42. Kf4 {[%clk 0:00:17.2]} 42... Na5 {[%clk 0:00:13.2]} 43. g5
{[%clk 0:00:16.5]} 43... hxg5+ {[%clk 0:00:13.3]} 44. Kxg5 {[%clk 0:00:17.4]}
44... Nc4 {[%clk 0:00:13.9]} 45. Kf4 {[%clk 0:00:17.1]} 45... Nd2 {[%clk
0:00:12.6]} 46. g4 {[%clk 0:00:16.2]} 46... f6 {[%clk 0:00:12.6]} 47. Ne6 {[%clk
0:00:14.3]} 47... Nb3 {[%clk 0:00:08.2]} 48. Ke3 {[%clk 0:00:05.9]} 48... c5
{[%clk 0:00:08.6]} 49. Nxc5 {[%clk 0:00:04.7]} 49... Nxc5 {[%clk 0:00:08.3]} 50.
dxc5 {[%clk 0:00:05.6]} 50... fxe5 {[%clk 0:00:05.8]} 51. g5 {[%clk 0:00:06.1]}
51... Kd7 {[%clk 0:00:02.5]} 52. f6 {[%clk 0:00:04.5]} 52... gxf6 {[%clk
0:00:03.4]} 53. g6 {[%clk 0:00:04.5]} 53... Ke6 {[%clk 0:00:04.3]} 54. c6 {[%clk
0:00:03.3]} 54... Kd6 {[%clk 0:00:04.3]} 55. g7 {[%clk 0:00:03]} 55... Kc7
{[%clk 0:00:05.2]} 56. g8=Q {[%clk 0:00:03.9]} 56... f5 {[%clk 0:00:06.1]} 57.
Qxd5 {[%clk 0:00:03]} 57... f4+ {[%clk 0:00:07]} 58. Ke4 {[%clk 0:00:03.1]} 1-0

[Event "*** SCC Grand Prix: Titled Tuesday Blitz"]
[Site "Chess.com"]
[Date "2020.06.02"]
[Round "7"]
[White "qqwow"]
[Black "novocane"]
[Result "1-0"]
[WhiteElo "2356"]
[BlackElo "2159"]
[TimeControl "180+1"]
[EndTime "11:21:23 PDT"]
[Termination "qqwow won on time"]

1. d4 {[%clk 0:03:00.9]} 1... Nf6 {[%clk 0:02:59.7]} 2. c4 {[%clk 0:03:01.2]}
2... e6 {[%clk 0:03:00]} 3. Nc3 {[%clk 0:03:01]} 3... Bb4 {[%clk 0:02:59.7]} 4.
a3 {[%clk 0:02:59.8]} 4... Bxc3+ {[%clk 0:02:59.7]} 5. bxc3 {[%clk 0:03:00.7]}
5... Nc6 {[%clk 0:03:00.1]} 6. f3 {[%clk 0:03:00.3]} 6... b6 {[%clk 0:02:58.2]}
7. e4 {[%clk 0:03:00.4]} 7... Ba6 {[%clk 0:02:46.6]} 8. Bg5 {[%clk 0:03:00.1]}
8... h6 {[%clk 0:02:43.6]} 9. Bh4 {[%clk 0:03:00]} 9... g5 {[%clk 0:02:36.3]}
10. Bf2 {[%clk 0:02:57.3]} 10... Na5 {[%clk 0:02:35.1]} 11. e5 {[%clk
0:02:49.1]} 11... Nh5 {[%clk 0:02:32.3]} 12. Qa4 {[%clk 0:02:39.3]} 12... Qe7
{[%clk 0:02:14.9]} 13. h4 {[%clk 0:02:38.4]} 13... O-O-O {[%clk 0:01:57]} 14.
O-O-O {[%clk 0:02:28.5]} 14... Kb8 {[%clk 0:01:45.6]} 15. g3 {[%clk 0:02:09.8]}
15... Ng7 {[%clk 0:01:30.8]} 16. Bd3 {[%clk 0:02:06.1]} 16... Nf5 {[%clk
0:01:25.9]} 17. h5 {[%clk 0:02:02.2]} 17... d5 {[%clk 0:01:07.8]} 18. cxd5
{[%clk 0:01:48.7]} 18... Bxd3 {[%clk 0:01:00.6]} 19. Rxd3 {[%clk 0:01:49.6]}
19... exd5 {[%clk 0:00:57.3]} 20. g4 {[%clk 0:01:46.4]} 20... Ng7 {[%clk
0:00:57.1]} 21. Ne2 {[%clk 0:01:45.4]} 21... Nc4 {[%clk 0:00:57]} 22. Kb1 {[%clk
0:01:28.4]} 22... Qxa3 {[%clk 0:00:50.9]} 23. Qxa3 {[%clk 0:01:27.9]} 23...
Nxa3+ {[%clk 0:00:51.8]} 24. Ka2 {[%clk 0:01:28]} 24... Nc4 {[%clk 0:00:51.1]}
25. f4 {[%clk 0:01:22.1]} 25... gxf4 {[%clk 0:00:47.1]} 26. Nxf4 {[%clk
0:01:23]} 26... Ne6 {[%clk 0:00:47.1]} 27. Ne2 {[%clk 0:01:18.2]} 27... Rdg8
{[%clk 0:00:33.4]} 28. Rh4 {[%clk 0:01:11.7]} 28... Ng5 {[%clk 0:00:33.2]} 29.
Kb3 {[%clk 0:01:04.5]} 29... Ne4 {[%clk 0:00:32.4]} 30. Be1 {[%clk 0:01:01.4]}
30... c6 {[%clk 0:00:24.8]} 31. Ng3 {[%clk 0:01:00.2]} 31... Nxg3 {[%clk
0:00:18.4]} 32. Bxg3 {[%clk 0:01:01.1]} 32... Kb7 {[%clk 0:00:18.2]} 33. Bf4
{[%clk 0:00:59.3]} 33... Rg7 {[%clk 0:00:18]} 34. Rg3 {[%clk 0:00:50.4]} 34...
a5 {[%clk 0:00:17.7]} 35. Rh1 {[%clk 0:00:45]} 35... Rhg8 {[%clk 0:00:17.6]} 36.
Rhg1 {[%clk 0:00:45]} 36... Rh7 {[%clk 0:00:17.4]} 37. Bc1 {[%clk 0:00:42.8]}
37... b5 {[%clk 0:00:17.2]} 38. Rf1 {[%clk 0:00:42.5]} 38... Rhg7 {[%clk
0:00:15.3]} 39. Rfg1 {[%clk 0:00:39.5]} 39... Rh7 {[%clk 0:00:15.4]} 40. Rf3
{[%clk 0:00:36]} 40... Kb6 {[%clk 0:00:15.7]} 41. Rf6 {[%clk 0:00:35.3]} 41...
a4+ {[%clk 0:00:16.2]} 42. Kc2 {[%clk 0:00:35]} 42... a3 {[%clk 0:00:16.4]} 43.
Kb3 {[%clk 0:00:35.3]} 43... a2 {[%clk 0:00:14.9]} 44. Kxa2 {[%clk 0:00:34.7]}
44... Ra8+ {[%clk 0:00:14.8]} 45. Kb1 {[%clk 0:00:33.3]} 45... b4 {[%clk
0:00:08.5]} 46. cxb4 {[%clk 0:00:33.2]} 46... Ra4 {[%clk 0:00:08.8]} 47. Kc2
{[%clk 0:00:32.5]} 47... Rxb4 {[%clk 0:00:08.9]} 48. Rxh6 {[%clk 0:00:30.6]}
48... Rg7 {[%clk 0:00:06.6]} 49. g5 {[%clk 0:00:30.4]} 49... Rg8 {[%clk
0:00:06.8]} 50. Rf6 {[%clk 0:00:30.3]} 50... Ra8 {[%clk 0:00:07]} 51. Kd1 {[%clk
0:00:29.5]} 51... Ra1 {[%clk 0:00:07]} 52. Rg3 {[%clk 0:00:28.3]} 52... Nb2+
{[%clk 0:00:05.1]} 53. Kc2 {[%clk 0:00:26.8]} 53... Nc4 {[%clk 0:00:05.2]} 54.
Rc3 {[%clk 0:00:23.8]} 54... Ra2+ {[%clk 0:00:05.5]} 55. Kd1 {[%clk 0:00:23.3]}
55... Rb1 {[%clk 0:00:05.9]} 56. Rxf7 {[%clk 0:00:21.4]} 56... Nb2+ {[%clk
0:00:03.7]} 57. Kc2 {[%clk 0:00:21.6]} 57... Rba1 {[%clk 0:00:01.7]} 58. Bxb2
{[%clk 0:00:21.3]} 58... Rh1 {[%clk 0:00:01.9]} 59. Rb3+ {[%clk 0:00:22.1]} 1-0

[Event "*** SCC Grand Prix: Titled Tuesday Blitz"]
[Site "Chess.com"]
[Date "2020.06.02"]
[Round "7"]
[White "awesomevishesh"]
[Black "imdarealist"]
[Result "1-0"]
[WhiteElo "2451"]
[BlackElo "2257"]
[TimeControl "180+1"]
[EndTime "11:21:24 PDT"]
[Termination "awesomevishesh won by checkmate"]

1. d4 {[%clk 0:03:00.9]} 1... d5 {[%clk 0:02:57]} 2. c4 {[%clk 0:03:00.7]} 2...
e6 {[%clk 0:02:57.2]} 3. Nf3 {[%clk 0:03:00.6]} 3... Nf6 {[%clk 0:02:56.3]} 4.
g3 {[%clk 0:03:00.4]} 4... Bb4+ {[%clk 0:02:54.8]} 5. Nbd2 {[%clk 0:02:59.9]}
5... O-O {[%clk 0:02:52]} 6. Bg2 {[%clk 0:02:59.6]} 6... dxc4 {[%clk 0:02:51.2]}
7. Qc2 {[%clk 0:02:58.6]} 7... Nc6 {[%clk 0:02:50.7]} 8. Qxc4 {[%clk 0:02:57.4]}
8... Qd5 {[%clk 0:02:47.4]} 9. O-O {[%clk 0:02:51.4]} 9... Bxd2 {[%clk
0:01:53.7]} 10. Qxd5 {[%clk 0:02:48.2]} 10... exd5 {[%clk 0:01:44.1]} 11. Bxd2
{[%clk 0:02:47.7]} 11... Bg4 {[%clk 0:01:43.4]} 12. e3 {[%clk 0:02:36.7]} 12...
Ne4 {[%clk 0:01:43.5]} 13. Bc3 {[%clk 0:02:34.3]} 13... Nxc3 {[%clk 0:01:41.3]}
14. bxc3 {[%clk 0:02:33.9]} 14... Na5 {[%clk 0:01:26.3]} 15. Ne5 {[%clk
0:02:32]} 15... Be6 {[%clk 0:01:25.4]} 16. Rab1 {[%clk 0:02:27.9]} 16... c6
{[%clk 0:01:20.5]} 17. Rb4 {[%clk 0:02:07]} 17... f6 {[%clk 0:01:17.5]} 18. Nd3
{[%clk 0:01:59.9]} 18... Bf5 {[%clk 0:01:05.2]} 19. Rd1 {[%clk 0:01:30.7]} 19...
Rfe8 {[%clk 0:00:55.4]} 20. h4 {[%clk 0:01:24.8]} 20... Re7 {[%clk 0:00:53.8]}
21. Bf3 {[%clk 0:01:16.1]} 21... Rae8 {[%clk 0:00:50.5]} 22. h5 {[%clk
0:01:07.9]} 22... b6 {[%clk 0:00:41.1]} 23. Nb2 {[%clk 0:00:52.1]} 23... Rc7
{[%clk 0:00:35]} 24. c4 {[%clk 0:00:46]} 24... Rd8 {[%clk 0:00:16.4]} 25. Rc1
{[%clk 0:00:38.7]} 25... Rcd7 {[%clk 0:00:16.6]} 26. cxd5 {[%clk 0:00:38.1]}
26... cxd5 {[%clk 0:00:17.5]} 27. Rb5 {[%clk 0:00:33.8]} 27... Be6 {[%clk
0:00:16.4]} 28. Nd3 {[%clk 0:00:24.7]} 28... Nc4 {[%clk 0:00:13.6]} 29. Nf4
{[%clk 0:00:24.7]} 29... Bf7 {[%clk 0:00:09.8]} 30. Bxd5 {[%clk 0:00:15.2]}
30... Bxd5 {[%clk 0:00:06.7]} 31. Rxd5 {[%clk 0:00:13.6]} 31... Rxd5 {[%clk
0:00:03.9]} 32. Nxd5 {[%clk 0:00:13.4]} 32... Rxd5 {[%clk 0:00:04.8]} 33. Rxc4
{[%clk 0:00:13.2]} 33... Ra5 {[%clk 0:00:05.2]} 34. Rc2 {[%clk 0:00:08.8]} 34...
Kf7 {[%clk 0:00:04.5]} 35. g4 {[%clk 0:00:08.7]} 35... g6 {[%clk 0:00:03]} 36.
hxg6+ {[%clk 0:00:08.6]} 36... hxg6 {[%clk 0:00:03.7]} 37. Kg2 {[%clk
0:00:09.1]} 37... Ke6 {[%clk 0:00:03.9]} 38. Kg3 {[%clk 0:00:09.4]} 38... g5
{[%clk 0:00:04.3]} 39. Kf3 {[%clk 0:00:07.5]} 39... Ra3 {[%clk 0:00:04.2]} 40.
Ke4 {[%clk 0:00:07.3]} 40... Ra4 {[%clk 0:00:04]} 41. f4 {[%clk 0:00:07.2]}
41... gxf4 {[%clk 0:00:03]} 42. exf4 {[%clk 0:00:08.1]} 42... Ra3 {[%clk
0:00:02.8]} 43. Rg2 {[%clk 0:00:05.5]} 43... Kf7 {[%clk 0:00:02]} 44. Kf5 {[%clk
0:00:04.8]} 44... Kg7 {[%clk 0:00:02.3]} 45. Rc2 {[%clk 0:00:04.8]} 45... Ra5+
{[%clk 0:00:02.9]} 46. Ke6 {[%clk 0:00:04.5]} 46... Kg6 {[%clk 0:00:03.3]} 47.
Rc8 {[%clk 0:00:03.8]} 47... Ra4 {[%clk 0:00:03]} 48. Rg8+ {[%clk 0:00:03.9]}
48... Kh7 {[%clk 0:00:03.3]} 49. Ra8 {[%clk 0:00:03.8]} 49... Rxd4 {[%clk
0:00:03.5]} 50. f5 {[%clk 0:00:04]} 50... Rxg4 {[%clk 0:00:03.5]} 51. Kxf6
{[%clk 0:00:04.5]} 51... Ra4 {[%clk 0:00:03.4]} 52. Kf7 {[%clk 0:00:03.9]} 52...
Ra5 {[%clk 0:00:02.4]} 53. f6 {[%clk 0:00:04.2]} 53... Rxa2 {[%clk 0:00:02.3]}
54. Rc8 {[%clk 0:00:04.3]} 54... b5 {[%clk 0:00:01.6]} 55. Rc1 {[%clk
0:00:04.2]} 55... Re2 {[%clk 0:00:02.5]} 56. Rh1+ {[%clk 0:00:03.2]} 56... Rh2
{[%clk 0:00:01.7]} 57. Rxh2# {[%clk 0:00:03.7]} 1-0

[Event "*** SCC Grand Prix: Titled Tuesday Blitz"]
[Site "Chess.com"]
[Date "2020.06.02"]
[Round "7"]
[White "medalja"]
[Black "Ba_clbaf_osed_ingo_3v21"]
[Result "0-1"]
[WhiteElo "2418"]
[BlackElo "2639"]
[TimeControl "180+1"]
[EndTime "11:21:32 PDT"]
[Termination "Ba_clbaf_osed_ingo_3v21 won by resignation"]

1. d4 {[%clk 0:03:00.9]} 1... Nf6 {[%clk 0:02:59.2]} 2. c4 {[%clk 0:03:00]} 2...
g6 {[%clk 0:02:58.8]} 3. Nf3 {[%clk 0:03:00]} 3... Bg7 {[%clk 0:02:58.8]} 4. g3
{[%clk 0:03:00.4]} 4... c6 {[%clk 0:02:58.8]} 5. Bg2 {[%clk 0:03:00.1]} 5... d5
{[%clk 0:02:58.5]} 6. O-O {[%clk 0:03:00.7]} 6... O-O {[%clk 0:02:58.3]} 7. Qb3
{[%clk 0:03:00.9]} 7... Qb6 {[%clk 0:02:56.6]} 8. Nc3 {[%clk 0:02:57.1]} 8...
Rd8 {[%clk 0:02:52]} 9. c5 {[%clk 0:02:42.5]} 9... Qxb3 {[%clk 0:02:48.4]} 10.
axb3 {[%clk 0:02:43.4]} 10... Na6 {[%clk 0:02:48.4]} 11. Ra4 {[%clk 0:02:39.3]}
11... Bf5 {[%clk 0:02:45.2]} 12. Bf4 {[%clk 0:02:18.2]} 12... Bc2 {[%clk
0:02:27.3]} 13. Rc1 {[%clk 0:02:13.3]} 13... Bxb3 {[%clk 0:02:10.6]} 14. Ra3
{[%clk 0:02:12.8]} 14... Bc4 {[%clk 0:02:11]} 15. b3 {[%clk 0:02:12.9]} 15...
Bb5 {[%clk 0:02:11.3]} 16. Nxb5 {[%clk 0:02:12.7]} 16... cxb5 {[%clk 0:02:12.2]}
17. c6 {[%clk 0:02:13.5]} 17... bxc6 {[%clk 0:01:33.8]} 18. Rxa6 {[%clk
0:02:12.7]} 18... Ne4 {[%clk 0:01:32.9]} 19. Rcxc6 {[%clk 0:02:10.1]} 19... Bf6
{[%clk 0:01:23.8]} 20. Be5 {[%clk 0:02:09.5]} 20... Rdc8 {[%clk 0:01:21.4]} 21.
Bxf6 {[%clk 0:01:56.8]} 21... Rxc6 {[%clk 0:01:17.8]} 22. Rxc6 {[%clk
0:01:57.7]} 22... exf6 {[%clk 0:01:18.1]} 23. Ne1 {[%clk 0:01:28]} 23... a5
{[%clk 0:01:15]} 24. Bxe4 {[%clk 0:01:27.8]} 24... dxe4 {[%clk 0:01:14.7]} 25.
Nc2 {[%clk 0:01:26.1]} 25... f5 {[%clk 0:01:12.2]} 26. f3 {[%clk 0:01:24.9]}
26... a4 {[%clk 0:01:03.6]} 27. bxa4 {[%clk 0:01:24.7]} 27... bxa4 {[%clk
0:01:03.6]} 28. fxe4 {[%clk 0:01:16.6]} 28... a3 {[%clk 0:01:00.9]} 29. Kf2
{[%clk 0:01:06.7]} 29... fxe4 {[%clk 0:00:55.6]} 30. Ke3 {[%clk 0:00:51.6]}
30... f5 {[%clk 0:00:53.4]} 31. d5 {[%clk 0:00:49.1]} 31... Kf7 {[%clk
0:00:51.6]} 32. Kf4 {[%clk 0:00:47]} 32... Ra7 {[%clk 0:00:49.2]} 33. Ke5 {[%clk
0:00:42.4]} 33... a2 {[%clk 0:00:47.5]} 34. Na1 {[%clk 0:00:36.1]} 34... Ke7
{[%clk 0:00:43.6]} 35. Rc8 {[%clk 0:00:29.7]} 35... Kf7 {[%clk 0:00:40.7]} 36.
Rh8 {[%clk 0:00:25.6]} 36... Kg7 {[%clk 0:00:39.1]} 37. Rb8 {[%clk 0:00:26.1]}
37... Kf7 {[%clk 0:00:37.2]} 38. Rb5 {[%clk 0:00:23.4]} 38... Re7+ {[%clk
0:00:34.1]} 39. Kd6 {[%clk 0:00:22.8]} 39... Ra7 {[%clk 0:00:22.2]} 40. Kc6
{[%clk 0:00:22.4]} 40... g5 {[%clk 0:00:12.8]} 41. d6 {[%clk 0:00:22.6]} 41...
Ke6 {[%clk 0:00:10.6]} 42. Rb8 {[%clk 0:00:10.2]} 42... Ra6+ {[%clk 0:00:09.9]}
43. Kc5 {[%clk 0:00:10.5]} 43... Ra5+ {[%clk 0:00:08.4]} 44. Kb6 {[%clk
0:00:09.1]} 44... Ra3 {[%clk 0:00:06.1]} 45. Rh8 {[%clk 0:00:03.9]} 45... f4
{[%clk 0:00:04.6]} 46. gxf4 {[%clk 0:00:03.3]} 46... gxf4 {[%clk 0:00:04.6]} 47.
Rxh7 {[%clk 0:00:04.2]} 47... Kxd6 {[%clk 0:00:04.7]} 48. Rf7 {[%clk 0:00:03.9]}
48... Ke5 {[%clk 0:00:04.6]} 49. Kc5 {[%clk 0:00:03.5]} 49... f3 {[%clk
0:00:04.5]} 50. exf3 {[%clk 0:00:04.4]} 50... exf3 {[%clk 0:00:05.4]} 51. Kb4
{[%clk 0:00:04.4]} 51... Re3 {[%clk 0:00:04.7]} 52. Nc2 {[%clk 0:00:03.5]} 52...
Re2 {[%clk 0:00:03.5]} 53. Kb3 {[%clk 0:00:03.3]} 53... Rxc2 {[%clk 0:00:02.5]}
54. Re7+ {[%clk 0:00:02.5]} 54... Kf4 {[%clk 0:00:02.4]} 55. Ra7 {[%clk
0:00:02.8]} 55... f2 {[%clk 0:00:02.3]} 56. Rf7+ {[%clk 0:00:03]} 56... Ke3
{[%clk 0:00:02.5]} 57. Kxc2 {[%clk 0:00:03.9]} 57... a1=Q {[%clk 0:00:02.3]} 58.
Re7+ {[%clk 0:00:04.8]} 58... Kf3 {[%clk 0:00:02.8]} 59. Rf7+ {[%clk 0:00:05.3]}
59... Kg2 {[%clk 0:00:03.7]} 60. h4 {[%clk 0:00:02.8]} 60... Qa2+ {[%clk
0:00:03.7]} 61. Kd3 {[%clk 0:00:03]} 61... Qxf7 {[%clk 0:00:04.6]} 0-1